fUSD/lending_fUSD_20260513
["ID","MTS","AMOUNT","RATE_DAILY","PERIOD"]
[422182651,1778659844000,-156.85,0.00026076,7]
[422182647,1778659844000,-370.15,0.00026055,7]
[422182652,1778659844000,-502.0,0.00026082,3]
[422182641,1778659844000,-156.85,0.00026027,2]
[422182650,1778659844000,-370.16,0.00026055,7]
[422182665,1778659844000,-370.16,0.00026113,2]
[422182715,1778659845000,-370.16,0.00026344,7]
[422182716,1778659845000,-782.54,0.00026373,2]
[422182711,1778659845000,-782.54,0.00026344,7]
[422182714,1778659845000,-747.7,0.00026344,7]
[422182726,1778659845000,-782.54,0.00026402,7]
[422182720,1778659845000,-370.16,0.00026373,2]
[422182717,1778659845000,-370.15,0.00026373,2]
[422182724,1778659845000,-200.0,0.00026397,2]
[422182718,1778659845000,-392.27,0.00026373,2]
[422182727,1778659845000,-370.15,0.00026402,7]
[422182725,1778659845000,-360.94,0.000264,7]
[422182723,1778659845000,-200.0,0.00026397,2]
[422182721,1778659845000,-1000.0,0.00026375,2]
[422182722,1778659845000,-156.85,0.00026375,7]
[422182732,1778659845000,-156.85,0.0002643,30]
[422182731,1778659845000,-156.85,0.00026425,30]
[422182735,1778659845000,-392.27,0.00026431,2]
[422182733,1778659845000,-782.54,0.00026431,2]
[422182728,1778659845000,-392.27,0.00026402,7]
[422182713,1778659845000,-392.27,0.00026344,7]
[422182719,1778659845000,-747.7,0.00026373,2]
[422182712,1778659845000,-370.15,0.00026344,7]
[422182700,1778659845000,-392.27,0.00026286,2]
[422182709,1778659845000,-158.24360289,0.00026318,2]
[422182690,1778659845000,-1000.0,0.00026235,2]
[422182691,1778659845000,-782.54,0.00026257,2]
[422182692,1778659845000,-370.15,0.00026257,2]
[422182688,1778659845000,-747.7,0.00026229,7]
[422182689,1778659845000,-370.16,0.00026229,7]
[422182695,1778659845000,-370.16,0.00026257,2]
[422182697,1778659845000,-156.85,0.00026276,30]
[422182693,1778659845000,-392.27,0.00026257,2]
[422182703,1778659845000,-882.6,0.00026296,2]
[422182710,1778659845000,-156.85,0.00026326,2]
[422182696,1778659845000,-156.85,0.00026269,7]
[422182699,1778659845000,-370.15,0.00026286,2]
[422182704,1778659845000,-782.54,0.00026315,7]
[422182694,1778659845000,-747.7,0.00026257,2]
[422182701,1778659845000,-747.7,0.00026286,2]
[422182702,1778659845000,-370.16,0.00026286,2]
[422182705,1778659845000,-370.15,0.00026315,7]
[422182706,1778659845000,-392.27,0.00026315,7]
[422182708,1778659845000,-370.16,0.00026315,7]
[422182707,1778659845000,-747.7,0.00026315,7]
[422182698,1778659845000,-782.54,0.00026286,2]
[422182729,1778659845000,-747.7,0.00026402,7]
[422182738,1778659845000,-410.54,0.00026459,2]
[422182734,1778659845000,-370.15,0.00026431,2]
[422182765,1778659845000,-410.72,0.00026575,7]
[422182763,1778659845000,-747.7,0.00026546,2]
[422182764,1778659845000,-370.16,0.00026546,2]
[422182768,1778659845000,-370.19,0.00026575,7]
[422182766,1778659845000,-782.6,0.00026575,7]
[422182769,1778659845000,-392.29,0.00026575,7]
[422182767,1778659845000,-156.96,0.00026575,30]
[422182770,1778659845000,-747.8,0.00026575,7]
[422182772,1778659845000,-370.16,0.00026575,7]
[422182762,1778659845000,-392.27,0.00026546,2]
[422182774,1778659845000,-1223.0,0.00026699,2]
[422182773,1778659845000,-156.85,0.00026591,2]
[422182776,1778659845000,-156.85,0.00026752,7]
[422182777,1778659845000,-150.0,0.00026828,2]
[422182778,1778659845000,-150.0,0.00026828,2]
[422182780,1778659845000,-150.0,0.00026828,2]
[422182779,1778659845000,-150.0,0.00026828,2]
[422182781,1778659845000,-150.0,0.00026828,2]
[422182782,1778659845000,-150.0,0.00026828,2]
[422182730,1778659845000,-370.16,0.00026402,7]
[422182775,1778659845000,-1000.0,0.00026715,2]
[422182761,1778659845000,-370.15,0.00026546,2]
[422182771,1778659845000,-156.89,0.00026575,30]
[422182752,1778659845000,-782.54,0.00026517,7]
[422182736,1778659845000,-747.7,0.00026431,2]
[422182759,1778659845000,-410.54,0.00026546,2]
[422182737,1778659845000,-370.16,0.00026431,2]
[422182742,1778659845000,-747.7,0.00026459,2]
[422182741,1778659845000,-392.27,0.00026459,2]
[422182739,1778659845000,-782.54,0.00026459,2]
[422182740,1778659845000,-370.15,0.00026459,2]
[422182745,1778659845000,-410.54,0.00026488,7]
[422182743,1778659845000,-370.16,0.00026459,2]
[422182747,1778659845000,-370.15,0.00026488,7]
[422182746,1778659845000,-782.54,0.00026488,7]
[422182744,1778659845000,-156.85,0.00026475,2]
[422182750,1778659845000,-370.16,0.00026488,7]
[422182757,1778659845000,-370.16,0.00026517,7]
[422182760,1778659845000,-782.54,0.00026546,2]
[422182754,1778659845000,-392.27,0.00026517,7]
[422182755,1778659845000,-747.7,0.00026517,7]
[422182753,1778659845000,-370.15,0.00026517,7]
[422182749,1778659845000,-747.7,0.00026488,7]
[422182748,1778659845000,-392.27,0.00026488,7]
[422182751,1778659845000,-410.54,0.00026517,7]
[422182758,1778659845000,-156.85,0.00026525,7]
[422182822,1778659846000,-169.26630568,0.00027396,2]
[422182813,1778659846000,-393.0,0.00027248,2]
[422182811,1778659846000,-930.0,0.00027025,2]
[422182812,1778659846000,-8442.22071765,0.0002716,2]
[422182815,1778659846000,-191.0,0.00027259,2]
[422182814,1778659846000,-150.0,0.00027259,2]
[422182816,1778659846000,-393.0,0.00027338,2]
[422182818,1778659846000,-849.0275875,0.00027394,2]
[422182819,1778659846000,-150.0,0.00027396,2]
[422182827,1778659846000,-200.0,0.00027397,2]
[422182820,1778659846000,-150.0,0.00027396,2]
[422182832,1778659846000,-374.212742,0.00027397,2]
[422182821,1778659846000,-150.0,0.00027396,2]
[422182823,1778659846000,-219.26,0.00027397,2]
[422182824,1778659846000,-200.0,0.00027397,2]
[422182825,1778659846000,-500.0,0.00027397,2]
[422182826,1778659846000,-150.0,0.00027397,2]
[422182833,1778659846000,-374.212742,0.00027397,2]
[422182834,1778659846000,-374.212742,0.00027397,2]
[422182829,1778659846000,-205.07880627,0.00027397,7]
[422182828,1778659846000,-1500.0,0.00027397,2]
[422182830,1778659846000,-151.14608712,0.00027397,2]
[422182807,1778659846000,-500.0,0.00027,7]
[422182817,1778659846000,-437.42445,0.00027358,2]
[422182808,1778659846000,-500.0,0.00027,7]
[422182784,1778659846000,-625.0,0.00026828,2]
[422182810,1778659846000,-2323.275753,0.0002701,2]
[422182786,1778659846000,-1269.0,0.00026828,2]
[422182787,1778659846000,-150.0,0.00026828,2]
[422182783,1778659846000,-926.0,0.00026828,2]
[422182785,1778659846000,-3541.0,0.00026828,2]
[422182789,1778659846000,-502.0,0.00026925,4]
[422182788,1778659846000,-150.0,0.00026849,2]
[422182790,1778659846000,-2000.0,0.00026978,2]
[422182791,1778659846000,-1639.0,0.00026978,2]
[422182792,1778659846000,-800.0,0.00026978,2]
[422182793,1778659846000,-800.0,0.00026978,2]
[422182795,1778659846000,-800.0,0.00026978,2]
[422182796,1778659846000,-709.0,0.00026978,2]
[422182794,1778659846000,-800.0,0.00026978,2]
[422182797,1778659846000,-500.0,0.00027,7]
[422182798,1778659846000,-500.0,0.00027,7]
[422182804,1778659846000,-500.0,0.00027,7]
[422182799,1778659846000,-500.0,0.00027,7]
[422182802,1778659846000,-500.0,0.00027,7]
[422182800,1778659846000,-467.5,0.00027,7]
[422182801,1778659846000,-500.0,0.00027,7]
[422182803,1778659846000,-500.0,0.00027,7]
[422182806,1778659846000,-500.0,0.00027,7]
[422182805,1778659846000,-500.0,0.00027,7]
[422182809,1778659846000,-2000.0,0.00027,2]
[422182831,1778659846000,-158.075942,0.00027397,2]
[422182852,1778659846000,-374.212742,0.00027397,2]
[422182848,1778659846000,-374.212742,0.00027397,2]
[422182869,1778659846000,-346.686202,0.00027397,2]
[422182867,1778659846000,-346.686202,0.00027397,2]
[422182863,1778659846000,-346.686202,0.00027397,2]
[422182871,1778659846000,-346.686202,0.00027397,2]
[422182865,1778659846000,-346.686202,0.00027397,2]
[422182868,1778659846000,-346.686202,0.00027397,2]
[422182890,1778659846000,-151.0,0.00027397,2]
[422182876,1778659846000,-151.0,0.00027397,2]
[422182875,1778659846000,-151.0,0.00027397,2]
[422182888,1778659846000,-151.0,0.00027397,2]
[422182894,1778659846000,-151.0,0.00027397,2]
[422182874,1778659846000,-346.686199,0.00027397,2]
[422182892,1778659846000,-151.0,0.00027397,2]
[422182882,1778659846000,-151.0,0.00027397,2]
[422182877,1778659846000,-151.0,0.00027397,2]
[422182883,1778659846000,-151.0,0.00027397,2]
[422182886,1778659846000,-151.0,0.00027397,2]
[422182879,1778659846000,-151.0,0.00027397,2]
[422182898,1778659846000,-151.0,0.00027397,2]
[422182896,1778659846000,-151.0,0.00027397,2]
[422182902,1778659846000,-238.575526,0.00027397,2]
[422182901,1778659846000,-151.0,0.00027397,2]
[422182842,1778659846000,-374.212742,0.00027397,2]
[422182862,1778659846000,-346.686202,0.00027397,2]
[422182872,1778659846000,-346.686202,0.00027397,2]
[422182900,1778659846000,-151.0,0.00027397,2]
[422182861,1778659846000,-346.686202,0.00027397,2]
[422182873,1778659846000,-346.686202,0.00027397,2]
[422182837,1778659846000,-374.212742,0.00027397,2]
[422182847,1778659846000,-374.212742,0.00027397,2]
[422182843,1778659846000,-374.212742,0.00027397,2]
[422182845,1778659846000,-374.212742,0.00027397,2]
[422182844,1778659846000,-374.212742,0.00027397,2]
[422182835,1778659846000,-374.212742,0.00027397,2]
[422182839,1778659846000,-374.212742,0.00027397,2]
[422182841,1778659846000,-374.212742,0.00027397,2]
[422182840,1778659846000,-374.212742,0.00027397,2]
[422182850,1778659846000,-374.212742,0.00027397,2]
[422182846,1778659846000,-374.212742,0.00027397,2]
[422182860,1778659846000,-346.686202,0.00027397,2]
[422182851,1778659846000,-374.212742,0.00027397,2]
[422182864,1778659846000,-346.686202,0.00027397,2]
[422182854,1778659846000,-346.686202,0.00027397,2]
[422182856,1778659846000,-346.686202,0.00027397,2]
[422182853,1778659846000,-374.212751,0.00027397,2]
[422182866,1778659846000,-346.686202,0.00027397,2]
[422182857,1778659846000,-346.686202,0.00027397,2]
[422182859,1778659846000,-346.686202,0.00027397,2]
[422182858,1778659846000,-346.686202,0.00027397,2]
[422182849,1778659846000,-374.212742,0.00027397,2]
[422182855,1778659846000,-346.686202,0.00027397,2]
[422182929,1778659847000,-300.0,0.00027397,2]
[422182937,1778659847000,-263.298087,0.00027397,2]
[422182927,1778659847000,-257.204248,0.00027397,2]
[422182932,1778659847000,-263.298087,0.00027397,2]
[422182926,1778659847000,-257.204248,0.00027397,2]
[422182923,1778659847000,-257.204248,0.00027397,2]
[422182936,1778659847000,-263.298087,0.00027397,2]
[422182934,1778659847000,-263.298087,0.00027397,2]
[422182931,1778659847000,-263.298087,0.00027397,2]
[422182941,1778659847000,-263.298087,0.00027397,2]
[422182935,1778659847000,-263.298087,0.00027397,2]
[422182933,1778659847000,-263.298087,0.00027397,2]
[422182940,1778659847000,-263.298087,0.00027397,2]
[422182938,1778659847000,-263.298087,0.00027397,2]
[422182942,1778659847000,-263.298087,0.00027397,2]
[422182943,1778659847000,-263.298087,0.00027397,2]
[422182946,1778659847000,-263.298087,0.00027397,2]
[422182957,1778659847000,-1000.0,0.00027415,7]
[422182925,1778659847000,-257.204248,0.00027397,2]
[422182945,1778659847000,-263.298087,0.00027397,2]
[422182939,1778659847000,-263.298087,0.00027397,2]
[422182928,1778659847000,-257.20424,0.00027397,2]
[422182915,1778659847000,-297.93181,0.00027397,2]
[422182922,1778659847000,-257.204248,0.00027397,2]
[422182949,1778659847000,-263.298087,0.00027397,2]
[422182907,1778659847000,-151.0,0.00027397,2]
[422182908,1778659847000,-257.204248,0.00027397,2]
[422182903,1778659847000,-257.204248,0.00027397,2]
[422182906,1778659847000,-257.204248,0.00027397,2]
[422182905,1778659847000,-151.0,0.00027397,2]
[422182904,1778659847000,-257.204248,0.00027397,2]
[422182910,1778659847000,-257.204248,0.00027397,2]
[422182921,1778659847000,-257.204248,0.00027397,2]
[422182924,1778659847000,-257.204248,0.00027397,2]
[422182911,1778659847000,-151.0,0.00027397,2]
[422182920,1778659847000,-257.204248,0.00027397,2]
[422182914,1778659847000,-257.204248,0.00027397,2]
[422182912,1778659847000,-257.204248,0.00027397,2]
[422182913,1778659847000,-151.0,0.00027397,2]
[422182917,1778659847000,-257.204248,0.00027397,2]
[422182918,1778659847000,-257.204248,0.00027397,2]
[422182919,1778659847000,-257.204248,0.00027397,2]
[422182916,1778659847000,-257.204248,0.00027397,2]
[422182930,1778659847000,-7552.61,0.00027397,10]
[422182909,1778659847000,-151.0,0.00027397,2]
[422182952,1778659847000,-5244.87,0.00027397,10]
[422182964,1778659847000,-200.0,0.00027671,2]
[422182953,1778659847000,-150.52331777,0.00027397,2]
[422182977,1778659847000,-398.0,0.00027981,2]
[422182975,1778659847000,-200.0,0.00027948,2]
[422182978,1778659847000,-318.39,0.00028,2]
[422182979,1778659847000,-2960093.23477769,0.00028,120]
[422182982,1778659847000,-75.54341289,0.00022694,7]
[422182981,1778659847000,-457.45658711,0.00022694,7]
[422182980,1778659847000,-365643.06402697,0.00028,120]
[422182983,1778659847000,-420.11,0.00026027,2]
[422182944,1778659847000,-6293.84,0.00027397,10]
[422182986,1778659847000,-564.11572434,0.00028,120]
[422182984,1778659847000,-420.11,0.00026055,7]
[422182987,1778659847000,-504.38,0.00028,120]
[422182991,1778659847000,-420.11,0.00026084,2]
[422182989,1778659847000,-1127.06611192,0.00028,120]
[422182993,1778659847000,-3565.01287388,0.00028,120]
[422182988,1778659847000,-6061.57519651,0.00028,120]
[422182992,1778659847000,-609.56326749,0.00028,120]
[422182990,1778659847000,-1208.41684316,0.00028,120]
[422182994,1778659847000,-3302.40057009,0.00028,120]
[422182995,1778659847000,-8441.88632382,0.00028,120]
[422182996,1778659847000,-1738.02322196,0.00028,120]
[422182976,1778659847000,-200.0,0.00027948,2]
[422182974,1778659847000,-1000.0,0.00027907,7]
[422182985,1778659847000,-3986.44986657,0.00028,120]
[422182971,1778659847000,-1000.0,0.00027787,7]
[422182973,1778659847000,-1000.0,0.00027841,7]
[422182955,1778659847000,-166.86,0.000274,7]
[422182951,1778659847000,-263.298089,0.00027397,2]
[422182954,1778659847000,-563.17126166,0.00027399,10]
[422182956,1778659847000,-1194.05,0.000274,2]
[422182950,1778659847000,-263.298087,0.00027397,2]
[422182948,1778659847000,-263.298087,0.00027397,2]
[422182970,1778659847000,-393.0,0.00027771,2]
[422182961,1778659847000,-393.0,0.00027593,2]
[422182965,1778659847000,-200.0,0.00027671,2]
[422182947,1778659847000,-263.298087,0.00027397,2]
[422182960,1778659847000,-234.94017322,0.00027563,2]
[422182958,1778659847000,-1000.0,0.00027542,7]
[422182959,1778659847000,-393.0,0.00027544,2]
[422182963,1778659847000,-1000.0,0.00027671,7]
[422182969,1778659847000,-502.0,0.00027767,5]
[422182972,1778659847000,-500.0,0.000278,7]
[422182966,1778659847000,-1000.0,0.0002771,7]
[422182968,1778659847000,-1000.0,0.00027755,7]
[422182962,1778659847000,-1000.0,0.00027621,7]
[422182967,1778659847000,-10886.46,0.00027713,7]
[422183016,1778659848000,-4.11,0.00026373,2]
[422183011,1778659848000,-10909.08752213,0.00028,120]
[422183014,1778659848000,-28479.06886707,0.00028,120]
[422183013,1778659848000,-343.07272125,0.00028,120]
[422183009,1778659848000,-420.11,0.00026315,7]
[422183008,1778659848000,-420.11,0.00026286,2]
[422183015,1778659848000,-416.0,0.00026373,2]
[422183010,1778659848000,-420.11,0.00026344,7]
[422183012,1778659848000,-711.25296855,0.00028,120]
[422183007,1778659848000,-420.11,0.00026257,2]
[422183004,1778659848000,-420.11,0.00026171,7]
[422182999,1778659848000,-160.0,0.00015512,2]
[422183000,1778659848000,-729.0,0.00022694,7]
[422183002,1778659848000,-313.46728607,0.00026113,2]
[422183003,1778659848000,-420.11,0.00026142,7]
[422183005,1778659848000,-420.11,0.000262,2]
[422183001,1778659848000,-106.64271393,0.00026113,2]
[422182998,1778659848000,-159.33112086,0.00015,2]
[422182997,1778659848000,-465.08616521,0.00015,2]
[422183018,1778659848000,-502.96,0.00028,120]
[422183006,1778659848000,-420.11,0.00026229,7]
[422183017,1778659848000,-331.89,0.00028,120]
[422183025,1778659848000,-420.11,0.00026402,7]
[422183021,1778659848000,-417.0,0.00024498,2]
[422183019,1778659848000,-7410.51390402,0.00028,120]
[422183041,1778659848000,-742561.20955217,0.00028,120]
[422183040,1778659848000,-417.0,0.00027498,2]
[422183039,1778659848000,-4287.62229786,0.00027397,10]
[422183038,1778659848000,-645.40251606,0.00026828,10]
[422183037,1778659848000,-549.59748394,0.00026828,10]
[422183035,1778659848000,-420.14,0.00026575,7]
[422183029,1778659848000,-420.11,0.00026517,7]
[422183032,1778659848000,-351.07362371,0.00026546,2]
[422183028,1778659848000,-420.11,0.00026488,7]
[422183036,1778659848000,-83.09770214,0.00027397,10]
[422183034,1778659848000,-382.71112118,0.00026546,10]
[422183033,1778659848000,-107.28887882,0.00026546,10]
[422183031,1778659848000,-368.0,0.00026488,10]
[422183030,1778659848000,-69.03637629,0.00026546,2]
[422183024,1778659848000,-435.0,0.00026055,10]
[422183026,1778659848000,-420.11,0.00026431,2]
[422183022,1778659848000,-158.751,0.00025594,10]
[422183042,1778659848000,-379.86433002,0.00028,120]
[422183023,1778659848000,-331.249,0.00025594,10]
[422183020,1778659848000,-422.549,0.00021498,2]
[422183027,1778659848000,-420.11,0.00026459,2]
[422183046,1778660818000,-217.36408318,0.00013612,2]
[422183047,1778660838000,-32.63591682,0.00013612,2]
[422183048,1778660838000,-124.29508734,0.00013647,2]
[422183050,1778661000000,174.1,8.773e-05,2]
[422183049,1778661000000,174.1,6.645e-05,2]
[422183069,1778661031000,-214.7464576,0.00013645,2]
[422183063,1778661031000,-250.0,0.00011966,2]
[422183064,1778661031000,-250.0,0.00011992,2]
[422183062,1778661031000,-174.1,0.00010901,2]
[422183068,1778661031000,-600.0,0.000136,4]
[422183066,1778661031000,-254.69,0.00013093,2]
[422183067,1778661031000,-4625.3,0.00013518,2]
[422183071,1778661031000,-1300.0,0.000137,5]
[422183070,1778661031000,-166.66,0.00013699,2]
[422183073,1778661031000,-32101.81769793,0.000137,2]
[422183074,1778661031000,-16537.90230207,0.000137,2]
[422183065,1778661031000,-174.1,0.0001303,2]
[422183072,1778661031000,-1487.15,0.000137,2]
[422183092,1778661032000,-205.60323142,0.0001379,2]
[422183088,1778661032000,-150.99,0.00013788,2]
[422183091,1778661032000,-9999.99,0.00013788,2]
[422183087,1778661032000,-9999.99,0.00013788,2]
[422183096,1778661032000,-5000.0,0.0001379,2]
[422183099,1778661032000,-500.0,0.00013889,2]
[422183098,1778661032000,-2000.0,0.000138,5]
[422183101,1778661032000,-500.0,0.00013889,2]
[422183102,1778661032000,-500.0,0.00013889,2]
[422183100,1778661032000,-500.0,0.00013889,2]
[422183104,1778661032000,-234.66857943,0.00013889,2]
[422183097,1778661032000,-472.7124,0.0001379,2]
[422183090,1778661032000,-13525.57,0.00013788,2]
[422183084,1778661032000,-300.0,0.00013748,2]
[422183082,1778661032000,-4999.99,0.00013745,2]
[422183085,1778661032000,-2500.0,0.00013749,2]
[422183086,1778661032000,-150.0,0.00013787,2]
[422183094,1778661032000,-214.7464576,0.0001379,2]
[422183083,1778661032000,-1200.0,0.00013748,2]
[422183093,1778661032000,-567.35279756,0.0001379,2]
[422183079,1778661032000,-214.7464576,0.00013718,2]
[422183081,1778661032000,-999.99,0.00013745,2]
[422183080,1778661032000,-240.0,0.00013745,2]
[422183076,1778661032000,-9999.99,0.000137,2]
[422183077,1778661032000,-15915.0,0.000137,2]
[422183075,1778661032000,-299.99,0.000137,2]
[422183078,1778661032000,-1195.48,0.000137,2]
[422183103,1778661032000,-500.0,0.00013889,2]
[422183089,1778661032000,-22437.88,0.00013788,2]
[422183105,1778661032000,-505.50097699,0.00013889,2]
[422183095,1778661032000,-151.0984,0.0001379,2]
[422183108,1778661032000,-155.0,0.00013889,2]
[422183106,1778661032000,-162.05932772,0.00013889,2]
[422183137,1778661032000,-301.48251273,0.0001389,2]
[422183131,1778661032000,-3731.97550058,0.0001389,2]
[422183136,1778661032000,-255.75980045,0.0001389,2]
[422183134,1778661032000,-739.83242181,0.0001389,2]
[422183133,1778661032000,-1294.64297778,0.0001389,2]
[422183135,1778661032000,-750.1198604,0.0001389,2]
[422183132,1778661032000,-538.83105998,0.0001389,2]
[422183130,1778661032000,-2412.11522595,0.0001389,2]
[422183129,1778661032000,-1206.96082785,0.0001389,2]
[422183126,1778661032000,-1572.53251699,0.0001389,2]
[422183127,1778661032000,-581.72491626,0.0001389,2]
[422183128,1778661032000,-1950.17403298,0.0001389,2]
[422183123,1778661032000,-88558.2089679,0.0001389,2]
[422183138,1778661032000,-29658.66654549,0.0001389,2]
[422183124,1778661032000,-613.68432659,0.0001389,2]
[422183125,1778661032000,-550.00639416,0.0001389,2]
[422183110,1778661032000,-500.0,0.00013889,2]
[422183112,1778661032000,-500.0,0.00013889,2]
[422183119,1778661032000,-170.0,0.0001389,2]
[422183120,1778661032000,-170.22904171,0.0001389,2]
[422183117,1778661032000,-1656.072,0.0001389,2]
[422183111,1778661032000,-492.88764344,0.00013889,2]
[422183113,1778661032000,-332.99925967,0.00013889,2]
[422183122,1778661032000,-209.847,0.0001389,2]
[422183118,1778661032000,-170.0,0.0001389,2]
[422183114,1778661032000,-150.89186909,0.00013889,2]
[422183115,1778661032000,-500.0,0.00013889,2]
[422183116,1778661032000,-162.34304271,0.00013889,2]
[422183121,1778661032000,-1000.0,0.0001389,2]
[422183175,1778661038000,-300.0,0.00014973,2]
[422183183,1778661038000,-570.38,0.00015371,2]
[422183171,1778661038000,-479.27784522,0.000149,2]
[422183170,1778661038000,-166.66,0.00014801,2]
[422183167,1778661038000,-2000.0,0.00014541,2]
[422183176,1778661038000,-300.0,0.00014973,2]
[422183178,1778661038000,-166.66,0.00015076,2]
[422183177,1778661038000,-250.0,0.00014973,2]
[422183179,1778661038000,-1680.0,0.00015123,2]
[422183180,1778661038000,-387.0,0.000152,2]
[422183182,1778661038000,-567.35279753,0.00015358,2]
[422183172,1778661038000,-255.0,0.00014904,2]
[422183191,1778661038000,-231.04,0.00016597,2]
[422183184,1778661038000,-300.0,0.00016,2]
[422183185,1778661038000,-2000.0,0.00016087,2]
[422183186,1778661038000,-433.0,0.00016117,2]
[422183187,1778661038000,-1406.27,0.00016156,2]
[422183190,1778661038000,-882.6,0.00016438,2]
[422183188,1778661038000,-1580.43,0.00016268,2]
[422183189,1778661038000,-254.69,0.00016366,2]
[422183192,1778661038000,-2351.0,0.00016636,2]
[422183196,1778661038000,-166.23,0.00016811,2]
[422183195,1778661038000,-570.38,0.00016741,2]
[422183174,1778661038000,-300.0,0.0001496,2]
[422183181,1778661038000,-155.0,0.00015278,2]
[422183173,1778661038000,-300.0,0.0001496,2]
[422183153,1778661038000,-200.0,0.00013946,2]
[422183166,1778661038000,-166.66,0.00014525,2]
[422183194,1778661038000,-189.51,0.00016712,2]
[422183141,1778661038000,-571.18927001,0.0001379,2]
[422183142,1778661038000,-446.26987052,0.0001379,2]
[422183144,1778661038000,-3479.06348085,0.0001379,2]
[422183143,1778661038000,-503.47737862,0.0001379,2]
[422183145,1778661038000,-926.60348458,0.0001389,2]
[422183147,1778661038000,-2917.5460326,0.0001389,2]
[422183151,1778661038000,-2700.0,0.000139,5]
[422183148,1778661038000,-2604.27551452,0.0001389,2]
[422183150,1778661038000,-381.96,0.000139,2]
[422183146,1778661038000,-552.93113016,0.0001389,2]
[422183149,1778661038000,-1358281.92595024,0.0001389,2]
[422183152,1778661038000,-3946.9,0.00013915,2]
[422183156,1778661038000,-200.0,0.00013981,2]
[422183157,1778661038000,-250.0,0.00014,2]
[422183158,1778661038000,-500.0,0.00014,2]
[422183155,1778661038000,-166.66,0.00013974,2]
[422183154,1778661038000,-150.07363201,0.00013951,2]
[422183159,1778661038000,-166.66,0.0001425,2]
[422183160,1778661038000,-2000.0,0.000143,2]
[422183161,1778661038000,-242.04642916,0.00014414,2]
[422183163,1778661038000,-386.98,0.00014473,2]
[422183162,1778661038000,-211.08,0.00014444,2]
[422183165,1778661038000,-150.0,0.00014514,2]
[422183164,1778661038000,-257.03732532,0.00014478,2]
[422183168,1778661038000,-156.92,0.00014663,2]
[422183201,1778661038000,-500.0,0.00017306,2]
[422183169,1778661038000,-254.69,0.00014729,2]
[422183198,1778661038000,-156.92,0.00017107,2]
[422183257,1778661038000,-151.0,0.00017306,2]
[422183267,1778661038000,-151.0,0.00017306,2]
[422183269,1778661038000,-2005.9555727,0.00017306,2]
[422183259,1778661038000,-151.0,0.00017306,2]
[422183273,1778661038000,-736.0,0.00017413,2]
[422183263,1778661038000,-151.0,0.00017306,2]
[422183271,1778661038000,-298.52681538,0.00017306,2]
[422183275,1778661038000,-479.27784521,0.00017674,2]
[422183260,1778661038000,-151.0,0.00017306,2]
[422183265,1778661038000,-151.0,0.00017306,2]
[422183277,1778661038000,-200.0,0.00017854,2]
[422183279,1778661038000,-1428.38747117,0.00017854,2]
[422183281,1778661038000,-2080.17592889,0.00017854,2]
[422183293,1778661038000,-511.88862272,0.00018276,2]
[422183295,1778661038000,-3292.0,0.00018299,2]
[422183291,1778661038000,-1258.41533419,0.000182,2]
[422183301,1778661038000,-150.0,0.00018376,2]
[422183289,1778661038000,-254.69,0.00018003,2]